Cogmind - Beta 13 @@@ ROGUE MODE // 2024.07.18 @ 10:45:24 Player: jimmyl Result: Destroyed by B-75 Beast with Heavy Plasma Cannon Performance ------------- Evolutions (2) 1000 Regions Visited (7) 1400 Robots Destroyed (63) 315 Value Destroyed (2046) 2046 Prototype IDs (33) 660 Alien Tech Used (0) 0 Bonus (1261) 1261 TOTAL SCORE: 6682 Bonus ------- High Alert Combat Kills 84 Follower Combat Kills 307 Entered Garrisons 200 Used RIF Installer 500 Aligned with FarCom 300 Friendly Fire -130 Cogmind --------- Core Integrity 0/550 Matter 195/300 Energy 100/100 System Corruption 0% Temperature Cool (12) Movement Rolling (130) Ox2 Location -8/Garrison Parts ------- > --- POWER (1) -------- (None) > --- PROPULSION (2) --- Compact Wheel > --- UTILITY (6) ------ High-capacity Storage Unit Signal Interpreter Advanced Targeting Computer Advanced Targeting Computer > --- WEAPON (2) ------- Advanced Beam Cannon Longsword +1 > --- INVENTORY (20) --- Light Nuclear Core Wheel Large Storage Unit Structural Scanner ECM Suite Propulsion Shielding Improved Light Armor Plating Missile Launcher Mining Laser Peak State ------------ > --- POWER ------------ Cooled Ion Engine > --- PROPULSION ------- Compact Wheel Compact Wheel > --- UTILITY ---------- Improved Heat Sink High-capacity Storage Unit Signal Interpreter Advanced Targeting Computer Propulsion Shielding Medium Armor Plating > --- WEAPON ----------- Ion Burst Cannon Advanced EMP Blaster > --- INVENTORY -------- Cooled Ion Engine Light Nuclear Core Wheel Compact Wheel Large Storage Unit Structural Scanner Advanced Targeting Computer ECM Suite Propulsion Shielding Improved Light Armor Plating Advanced Beam Cannon Flak Cannon Missile Launcher Precision Rocket Launcher Mining Laser Longsword +1 [Rating: 30] Favorites ----------- Power Ion Engine Engine Ion Engine Propulsion Light Treads Treads Light Treads Leg Aluminum Leg Wheel Compact Wheel Utility High-capacity Storage Unit Device Improved Heat Sink Storage High-capacity Storage Unit Processor Targeting Computer Hackware System Shield Protection Propulsion Shielding Weapon Beam Cannon Energy Gun Heavy EM Shotgun Energy Cannon Beam Cannon Ballistic Gun Assault Rifle Ballistic Cannon Flak Cannon Launcher Advanced EMP Blaster Special Weapon Mining Laser Slashing Weapon Longsword +1 Build | -11 -10 -10 -10 -9 -8 -8 -8 ------- Run | Yrd Mat Min Exi Min Mat Sto Gar Slots Evolved 4 | . . . . . 4 . . Power . | . . . . . . . . Propulsion . | . . . . . . . . Utility 4 | . . . . . 4 . . Weapon . | . . . . . . . . Parts Attached 58 | . 16 . 1 . 8 18 15 Power 6 | . 2 . 1 . . 2 1 Engine 6 | . 2 . 1 . . 2 1 Core . | . . . . . . . . Reactor . | . . . . . . . . Propulsion 11 | . 7 . . . 2 1 1 Treads 5 | . 5 . . . . . . Leg . | . . . . . . . . Wheel 6 | . 2 . . . 2 1 1 Hover . | . . . . . . . . Flight . | . . . . . . . . Utility 17 | . 3 . . . 4 8 2 Device 2 | . . . . . . 1 1 Storage 2 | . 2 . . . . . . Processor 4 | . 1 . . . 1 1 1 Hackware 1 | . . . . . . 1 . Protection 8 | . . . . . 3 5 . Artifact . | . . . . . . . . Weapon 24 | . 4 . . . 2 7 11 Energy Gun 3 | . . . . . 2 1 . Energy Cannon 7 | . 2 . . . . 3 2 Ballistic Gun 2 | . 2 . . . . . . Ballistic Cannon 3 | . . . . . . 1 2 Launcher 7 | . . . . . . 2 5 Special Weapon 1 | . . . . . . . 1 Impact Weapon . | . . . . . . . . Slashing Weapon 1 | . . . . . . . 1 Piercing Weapon . | . . . . . . . . Special Melee Weapon . | . . . . . . . . Unidentified Prototypes 6 | . . . . . 1 5 . Parts Lost 18 | . 1 . . . 1 5 11 Power 2 | . . . . . . . 2 Propulsion 4 | . . . . . 1 1 2 Utility 6 | . . . . . . 3 3 Weapon 6 | . 1 . . . . 1 4 Highest Loss Streak 3 | . 1 . . . 1 1 3 To Critical Strikes . | . . . . . . . . Average Slot Usage (%) 93 | . 98 100 99 100 74 98 81 Engine 10 | . 13 14 13 14 9 8 4 Treads 13 | . 23 28 28 28 3 . . Leg 1 | . 4 . . . . . . Wheel 8 | . . . . . 14 18 16 Device 1 | . . . . . . 2 4 Storage 11 | . 14 14 14 14 9 9 9 Processor 15 | . 13 14 14 14 9 18 19 Protection 7 | . . . . . 11 21 11 Energy Gun 2 | . 4 . . . 8 3 . Energy Cannon 9 | . 6 14 14 14 9 10 9 Ballistic Gun 7 | . 16 14 14 14 . . . Ballistic Cannon 1 | . . . . . . 3 2 Naked Turns . | . . . . . . . . Heaviest Build 74 | 13 50 50 50 50 61 74 71 Greatest Support 40 | 20 40 40 40 40 40 32 32 Greatest Overweight (x) 4 | . 2 1 1 1 1 4 3 Average Overweight (x) 1 | . . 1 1 1 1 1 1 Largest Inventory Capacity 20 | 8 20 20 20 20 20 20 20 Average Capacity 18 | 8 14 20 20 20 20 20 20 Most Carried 18 | 6 13 11 11 11 14 18 16 Average Carried 11 | 6 8 11 10 11 12 15 13 Final Capacity 20 | 8 20 20 20 20 20 20 20 Final Carried 16 | 6 11 11 11 11 13 16 9 Class Distribution -------------------- 92% | Mutant 7% | Commander-Mutant Dominant Class ---------------- Mutant | -10/Materials Mutant | -10/Mines Mutant | -10/Exiles Mutant | -9/Mines Mutant | -8/Materials Mutant | -8/Storage Mutant | -8/Garrison Resources | -11 -10 -10 -10 -9 -8 -8 -8 ----------- Run | Yrd Mat Min Exi Min Mat Sto Gar Matter Collected 1160 | 200 285 18 . 13 65 341 238 Remotely . | . . . . . . . . Salvage Created 2533 | . 469 51 . . 383 739 891 Parts 146 | . 30 4 . . 18 50 44 Haulers Intercepted 3 | . . . . . . 2 1 Recyclers Shooed . | . . . . . . . . Parts Field Recycled . | . . . . . . . . Retrieved Matter . | . . . . . . . . Parts Self-Destructed . | . . . . . . . . Prevented . | . . . . . . . . Kills | -11 -10 -10 -10 -9 -8 -8 -8 ------- Run | Yrd Mat Min Exi Min Mat Sto Gar Combat Hostiles Destroyed 50 | . 11 3 . . 6 13 17 Guns 15 | . 9 3 . . 1 2 . Cannons 16 | . 2 . . . 3 11 . AOE 18 | . . . . . 2 . 16 Classes Destroyed 12 | . 4 . . . 2 4 2 Worker 1 | . . . . . . 1 . Builder 1 | . . . . . . 1 . Hauler 3 | . . . . . . 2 1 Recycler 1 | . . . . . . 1 . Operator 2 | . 1 . . . 1 . . Watcher 4 | . 2 . . . 1 1 . Swarmer 10 | . 3 3 . . . . 4 Cutter 2 | . . . . . . . 2 Grunt 21 | . 8 . . . 3 5 5 Duelist 1 | . . . . . . . 1 Sentry 13 | . . . . . 2 7 4 Hunter 4 | . . . . . 1 1 2 Best Kill Streak 9 | . 2 3 . . 2 5 9 Combat Bots Only 9 | . 2 3 . . 2 2 9 Max Kills in Single Turn 4 | . 1 1 . . 1 2 4 Gunslinging . | . . . . . . . . Exploded 4 | . . . . . 1 . 4 Melee . | . . . . . . . . Uniques/NPCs Destroyed . | . . . . . . . . Combat | -11 -10 -10 -10 -9 -8 -8 -8 -------- Run | Yrd Mat Min Exi Min Mat Sto Gar Hostile Shots Fired 280 | . 62 34 . . 18 70 96 Missed 95 | . 16 14 . . 3 27 35 Damage Taken 3093 | . 573 159 . . 206 726 1429 Core 686 | . 95 36 . . . 62 493 Absorbed by Shields . | . . . . . . . . Redirected to Shielding 50 | . . . . . . 18 32 Ignored by Resistances 18 | . . . . . . 18 . Regen/Repaired (Parts) 49 | . 49 . . . . . . Core Remaining (%) 73 | 100 . . . 47 . . . Volleys Fired 188 | . 61 6 . 1 13 47 60 Largest 2 | . 2 2 . 2 2 2 2 Hottest 168 | . 80 80 . 80 110 168 168 Shots Fired 304 | . 110 12 . 2 26 85 69 Gun 130 | . 98 6 . 1 13 12 . Cannon 138 | . 12 6 . 1 13 73 33 Launcher 32 | . . . . . . . 32 Special 4 | . . . . . . . 4 Kinetic 104 | . 68 6 . 1 . 26 3 Thermal 113 | . 12 6 . 1 13 47 34 Explosive 6 | . . . . . . . 6 Electromagnetic 81 | . 30 . . . 13 12 26 Robot Hit Streak 31 | . 15 1 . . 10 31 22 Robot Miss Streak 7 | . 4 3 . 2 6 7 3 Penetration Max . | . . . . . . . . Secondary Targets . | . . . . . . . . Shots Hit Robots 185 | . 71 5 . . 17 63 29 Core Hits 129 | . 25 3 . . 15 48 38 Critical Kills . | . . . . . . . . Critical Parts Destroyed . | . . . . . . . . Critical Strikes 2 | . 2 . . . . . . Corrupt 2 | . 2 . . . . . . Melee Attacks . | . . . . . . . . Impact . | . . . . . . . . Slashing . | . . . . . . . . Piercing . | . . . . . . . . Sneak Attacks . | . . . . . . . . Combat Hostiles . | . . . . . . . . Follow-up Attacks . | . . . . . . . . Damage Inflicted 5429 | . 901 63 . . 491 1964 2010 Guns 1206 | . 730 63 . . 246 167 . Cannons 2266 | . 162 . . . 121 1767 216 Explosions 1918 | . . . . . 124 . 1794 Melee . | . . . . . . . . Ramming 39 | . 9 . . . . 30 . Kinetic 878 | . 437 63 . . . 319 59 Thermal 2140 | . 162 . . . 245 1448 285 Explosive 366 | . . . . . . . 366 Electromagnetic 2006 | . 293 . . . 246 167 1300 Impact . | . . . . . . . . Slashing . | . . . . . . . . Piercing . | . . . . . . . . Highest Corruption . | . . . . . . . . Average Corruption . | . . . . . . . . Corruption Purged . | . . . . . . . . Corruption Blocked . | . . . . . . . . Overload Shots . | . . . . . . . . Overflow Damage 18 | . . . . . . 14 4 Projectiles 14 | . . . . . . 14 . Explosions 4 | . . . . . . . 4 Melee . | . . . . . . . . Knockbacks 15 | . 1 . . . . 14 . Impact 1 | . 1 . . . . . . Kinetic 13 | . . . . . . 13 . Secondary 1 | . . . . . . 1 . Self-Inflicted Damage 201 | . . . . . 20 14 167 Shots 8 | . . . . . 1 . 7 Rammed 3 | . 1 . . . . 2 . Targets Rammed 3 | . 1 . . . . 2 . Kicked . | . . . . . . . . Crushed . | . . . . . . . . Highest Temperature 417 | . 123 72 . 18 201 417 60 Average Temperature 74 | . 47 42 . 12 59 105 17 Received Heat Transfer 969 | . 315 . . . 72 333 249 Effects 2 | . . . . . . 2 . Damage (minor) 2 | . . . . . . 2 . Siege Activations . | . . . . . . . . Robots Corrupted 1 | . . . . . . . 1 Combat Hostiles 1 | . . . . . . . 1 Parts Fried 10 | . 2 . . . 2 . 6 Impact Corruptions . | . . . . . . . . Robots Melted . | . . . . . . . . Combat Hostiles . | . . . . . . . . Parts Melted 2 | . . . . . . 2 . Heat Transferred 2888 | . 333 . . . 409 1737 409 Parts Sabotaged . | . . . . . . . . Parts Stolen . | . . . . . . . . Parts Stripped . | . . . . . . . . Power Chain Reactions 9 | . . . . . 2 . 7 Alert | -11 -10 -10 -10 -9 -8 -8 -8 ------- Run | Yrd Mat Min Exi Min Mat Sto Gar Peak Influence 794 | . 221 98 . . 206 387 794 Initial 226 | . . 28 . . . 4 226 Average 177 | . 62 65 . . 61 130 601 Maximum Alert Level 3 | . 1 . . . 1 1 3 Low Security (%) 72 | 100 92 100 . 100 92 77 . Level 1 12 | . 7 . . . 7 22 21 Level 2 4 | . . . . . . . 22 Level 3 10 | . . . . . . . 56 Level 4 . | . . . . . . . . Level 5 . | . . . . . . . . High Security . | . . . . . . . . Max Security . | . . . . . . . . Squads Dispatched 3 | . 2 . . . 1 . . Investigation . | . . . . . . . . Extermination . | . . . . . . . . Reinforcement 3 | . 2 . . . 1 . . Assault . | . . . . . . . . Garrison . | . . . . . . . . Intercept . | . . . . . . . . Searches Triggered . | . . . . . . . . Construction Impeded . | . . . . . . . . Haulers Reinforced . | . . . . . . . . Active Scanning Responses . | . . . . . . . . Cargo Convoy Interrupts . | . . . . . . . . Stealth | -11 -10 -10 -10 -9 -8 -8 -8 --------- Run | Yrd Mat Min Exi Min Mat Sto Gar Distress Signals 5 | . . . . . 2 3 . Communications Jammed . | . . . . . . . . Distress Signals . | . . . . . . . . Times Spotted 95 | . 25 4 . . 9 30 27 Peak Tracking Total 7 | . 3 3 . . 3 5 7 Tactical Retreats 15 | . 2 . . . 1 3 9 Traps | -11 -10 -10 -10 -9 -8 -8 -8 ------- Run | Yrd Mat Min Exi Min Mat Sto Gar Traps Triggered 9 | . 2 . . . 1 2 4 Indirectly 1 | . . . . . . . 1 Trap Hack Attempts . | . . . . . . . . Triggered . | . . . . . . . . Disarmed . | . . . . . . . . Reprogrammed 1 | . . . . . . 1 . Reused . | . . . . . . . . Traps Extracted . | . . . . . . . . Installed . | . . . . . . . . Triggered . | . . . . . . . . Machines | -11 -10 -10 -10 -9 -8 -8 -8 ---------- Run | Yrd Mat Min Exi Min Mat Sto Gar Machines Disabled 3 | . 1 . . . . 1 1 Max in Single Turn 1 | . 1 . . . . 1 1 Machines Repaired . | . . . . . . . . Machines Dismantled . | . . . . . . . . Machines Sabotaged . | . . . . . . . . Overloaded Fab Kills . | . . . . . . . . Hacking | -11 -10 -10 -10 -9 -8 -8 -8 --------- Run | Yrd Mat Min Exi Min Mat Sto Gar Machines Accessed 23 | . 6 . 1 . 3 13 . Terminals 19 | . 5 . . . 3 11 . Fabricators . | . . . . . . . . Repair Stations 2 | . 1 . . . . 1 . Recycling Units . | . . . . . . . . Scanalyzers . | . . . . . . . . Garrison Access 1 | . . . . . . 1 . Total Hacks 53 | . 16 . 1 . 10 26 . Successful 29 | . 9 . 1 . 4 15 . Failed 24 | . 7 . . . 6 11 . Catastrophic 6 | . 2 . . . 1 3 . Database Lockouts . | . . . . . . . . Manual 6 | . 3 . 1 . 1 1 . Terminals 47 | . 14 . . . 10 23 . Fabricators . | . . . . . . . . Repair Stations 3 | . 2 . . . . 1 . Recycling Units . | . . . . . . . . Scanalyzers . | . . . . . . . . Garrison Access 2 | . . . . . . 2 . Terminal Hacks 25 | . 7 . 1 . 4 13 . Robot Analysis 2 | . 2 . . . . . . Prototype ID Bank 3 | . . . . . . 3 . Open Door 4 | . . . . . . 4 . Terminal Index 1 | . . . . . . 1 . Locate Traps 4 | . 2 . . . 1 1 . Reprogram Traps 1 | . . . . . . 1 . Dispatch Records 1 | . . . . . 1 . . Hauler Manifests 2 | . 1 . . . . 1 . Registered Components 2 | . 1 . . . 1 . . Registered Prototypes 1 | . . . . . 1 . . Zone Layout 3 | . 1 . . . . 2 . Derelict Proto ID Bank 1 | . . . 1 . . . . Fabricator Hacks . | . . . . . . . . Repair Station Hacks 2 | . 2 . . . . . . Scan Component 1 | . 1 . . . . . . Repair 1 | . 1 . . . . . . Recycling Unit Hacks . | . . . . . . . . Scanalyzer . | . . . . . . . . Garrison Access Hacks 1 | . . . . . . 1 . Unlock Access 1 | . . . . . . 1 . Unauthorized Hacks 1 | . . . . . . 1 . Terminals 1 | . . . . . . 1 . Assimilate 1 | . . . . . . 1 . Fabricators . | . . . . . . . . Repair Stations . | . . . . . . . . Recycling Units . | . . . . . . . . Scanalyzers . | . . . . . . . . Garrison Access . | . . . . . . . . Data Cores Recovered . | . . . . . . . . Used . | . . . . . . . . Hacking Detections 17 | . 4 . . . 3 10 . Full Trace Events . | . . . . . . . . Feedback Events . | . . . . . . . . Feedback Blocked . | . . . . . . . . Robot Schematics Acquired . | . . . . . . . . Robots Built . | . . . . . . . . Authchips . | . . . . . . . . Time . | . . . . . . . . Total Robot Build Rating . | . . . . . . . . Part Schematics Acquired . | . . . . . . . . Parts Built . | . . . . . . . . Authchips . | . . . . . . . . Time . | . . . . . . . . Total Part Build Rating . | . . . . . . . . Parts Repaired 1 | . 1 . . . . . . Time 26 | . 26 . . . . . . Parts Recycled . | . . . . . . . . Recycled Matter . | . . . . . . . . Retrieved Matter . | . . . . . . . . Retrieved Components . | . . . . . . . . Parts Scanalyzed . | . . . . . . . . Part Schematics Acquired . | . . . . . . . . Parts Damaged . | . . . . . . . . Bothacking | -11 -10 -10 -10 -9 -8 -8 -8 ------------ Run | Yrd Mat Min Exi Min Mat Sto Gar Used RIF Installer 1 | . . . . . . . 1 Robots Hacked . | . . . . . . . . Non-combat . | . . . . . . . . Combat . | . . . . . . . . Robot Hacks Applied . | . . . . . . . . Relay Couplers Released . | . . . . . . . . Fabnet Peak Effective % . | . . . . . . . . Robots Rewired 3 | . . . . . . . 3 Allies Hacked . | . . . . . . . . Hacks Repelled . | . . . . . . . . Allies | -11 -10 -10 -10 -9 -8 -8 -8 -------- Run | Yrd Mat Min Exi Min Mat Sto Gar Total Allies 18 | . . 3 . . . 12 3 Largest Group 11 | . . 3 3 3 3 11 7 Highest-Rated Group 273 | . . 40 40 40 40 273 209 Highest-Rated Ally 100 | . . 16 16 16 16 100 100 Total Orders . | . . . . . . . . Ally Attacks 90 | . . 5 . . 10 33 42 Total Damage 1621 | . . 55 . . 117 824 625 Kills 15 | . . 1 . . . 9 5 Allies Corrupted . | . . . . . . . . Allies Melted . | . . . . . . . . Intel | -11 -10 -10 -10 -9 -8 -8 -8 ------- Run | Yrd Mat Min Exi Min Mat Sto Gar Robot Analysis Total 2 | . 2 . . . . . . Derelict Logs Recovered 3 | . . 2 . 1 . . . Drone Launches . | . . . . . . . . Drone Recoveries . | . . . . . . . . Exploration | -11 -10 -10 -10 -9 -8 -8 -8 ------------- Run | Yrd Mat Min Exi Min Mat Sto Gar Turns Passed 5907 | 3 1580 569 514 333 593 1289 1026 Spaces Moved 2649 | 3 661 229 214 137 288 576 541 Core . | . . . . . . . . Treads 1150 | . 536 229 214 137 34 . . Legs 127 | 3 124 . . . . . . Wheels 1372 | . 1 . . . 254 576 541 Hover . | . . . . . . . . Flight . | . . . . . . . . Fastest Speed 100 | 120 100 240 240 240 115 115 115 Average Speed 168 | 120 192 240 240 240 129 129 122 Slowest Speed 320 | 120 320 240 240 240 240 160 145 Overloaded Moves . | . . . . . . . . Propulsion Burnouts . | . . . . . . . . Robots Hopped . | . . . . . . . . Cave-ins Triggered . | . . . . . . . . Exploration Rate (%) 47 | 1 94 50 62 38 20 69 49 Regions Visited 7 Branch Regions 4 Pre-discovered Areas 2 | . . 1 . 1 . . . Known Exits Taken 2 | . . . . . 1 1 . Unknown Exits Taken 5 | 1 1 1 1 1 . . . Scrap Searched 1 | . . . . 1 . . . Spaces Dug . | . . . . . . . . Terrain Destroyed 107 | . . . . . 3 . 104 Melee . | . . . . . . . . Projectile 1 | . . . . . . . 1 AOE 106 | . . . . . 3 . 103 Terrain Rammed . | . . . . . . . . Walls Destroyed . | . . . . . . . . Machines Disabled . | . . . . . . . . Actions | -11 -10 -10 -10 -9 -8 -8 -8 --------- Run | Yrd Mat Min Exi Min Mat Sto Gar Total 3786 | 2 870 237 216 140 482 1016 823 Wait 755 | . 103 3 . 3 161 337 148 Move 2643 | 2 660 228 213 136 287 576 541 Hop . | . . . . . . . . Pick Up 49 | . 19 . 1 . 10 18 1 Fast Attach . | . . . . . . . . Attach 46 | . 12 . 1 . 8 15 10 Detach 6 | . 2 . . . . 2 2 Swap 12 | . 4 . . . . 3 5 Drop 21 | . 8 . 1 . 3 8 1 Fire 188 | . 61 6 . 1 13 47 60 Melee . | . . . . . . . . Ram 2 | . . . . . . 2 . Kick . | . . . . . . . . Crush 1 | . 1 . . . . . . Escape Stasis 16 | . . . . . . 8 8 Rewire 47 | . . . . . . . 47 Trap . | . . . . . . . . Miscellaneous . | . . . . . . . . Route ------- -11/Scrapyard -10/Materials (discovered 4 exits: [*Mat x3] / [*Min]) -10/Mines (discovered 2 exits: [*Mat] / *Exi) -10/Exiles -9/Mines -8/Materials -8/Storage -8/Garrison (discovered 1 exit: [*Fac]) History --------- Turn | Location | Event 1 | -11/Scrapyard | Discovered new exit (range 3) 4 | -11/Scrapyard | Entered Materials 130 | -10/Materials | Discovered new exit (range 16) 310 | -10/Materials | Build established: Mutant 583 | -10/Materials | Discovered new exit (range 17) 726 | -10/Materials | Repaired Lgt. Assault Rifle 873 | -10/Materials | Discovered new exit (range 16) 1253 | -10/Materials | Discovered new exit (range 8) 1584 | -10/Materials | Entered Mines 1607 | -10/Mines | Core integrity fell below 50% 1694 | -10/Mines | Assisted by bots powering up and referring to "LRC-V3" 1782 | -10/Mines | Discovered new exit (range 9) 2047 | -10/Mines | Learned location of Zion (-6) 2053 | -10/Mines | Assembled infested the area 2057 | -10/Mines | Learned Materials emergency access door positions 2141 | -10/Mines | Deemed a non-threat by the Exiles lab entrance 2143 | -10/Mines | Discovered new exit (range 5) 2153 | -10/Mines | Entered Exiles 2153 | -10/Exiles | Accompanied by 3 allies 2211 | -10/Exiles | Met 8R-AWN 2257 | -10/Exiles | Met EX-HEX 2324 | -10/Exiles | Met EX-BIN 2353 | -10/Exiles | Aligned with FarCom system 2355 | -10/Exiles | Given EX-Vault access code 2420 | -10/Exiles | Opened EX-Vault 2438 | -10/Exiles | Found Longsword +1 2487 | -10/Exiles | Warned to stay clear of 0b10 Research branches 2552 | -10/Exiles | Met EX-DEC 2641 | -10/Exiles | Discovered new exit (range 12) 2667 | -10/Exiles | Left Exiles lab with Longsword +1 2667 | -10/Exiles | Entered Mines 2667 | -9/Mines | Accompanied by 3 allies 2713 | -9/Mines | Learned location of Recycling (-8) 2964 | -9/Mines | Discovered new exit (range 16) 3000 | -9/Mines | Entered Materials 3000 | -8/Materials | Accompanied by 3 allies 3000 | -8/Materials | Evolved 4 slots: Utility x4 3111 | -8/Materials | Lost 3 allies 3531 | -8/Materials | Discovered new exit (range 11) 3552 | -8/Materials | Identified exit to Storage 3593 | -8/Materials | Entered Storage 4646 | -8/Storage | Assisted by bots powering up and referring to "LRC-V3" 4703 | -8/Storage | Met 01-MTF 4856 | -8/Storage | Lost 4 allies 4880 | -8/Storage | Identified exit to Garrison 4882 | -8/Storage | Entered Garrison 4882 | -8/Garrison | Accompanied by 7 allies (01-MTF) 4887 | -8/Garrison | 01-MTF left 4897 | -8/Garrison | Installed Relay Interface Framework 4952 | -8/Garrison | Build established: Commander-Mutant 4958 | -8/Garrison | Triggered checkpoint 5082 | -8/Garrison | Triggered checkpoint 5082 | -8/Garrison | Triggered checkpoint 5131 | -8/Garrison | Lost 4 allies 5139 | -8/Garrison | Destroyed 9 combat bots 5216 | -8/Garrison | Triggered checkpoint 5258 | -8/Garrison | Spotted B-75 Beast 5308 | -8/Garrison | Lost 3 parts (1p1n1u) 5363 | -8/Garrison | Core integrity fell below 50% 5386 | -8/Garrison | Build established: Mutant 5693 | -8/Garrison | Discovered new exit (range 7) 5720 | -8/Garrison | Lost 3 allies 5784 | -8/Garrison | Lost 3 parts (1n2w) 5830 | -8/Garrison | Core integrity fell below 20% 5908 | -8/Garrison | Destroyed by B-75 Beast with Heavy Plasma Cannon Last Messages --------------- 05557_ Attempting to rewire X-57 Shotgunner. 05577_ X-57 Shotgunner rewired. 05581_ ALERT: Dispatching investigation squad to Factory. 05659_ Shotgunner 3b destroyed. 05662_ G-47 Trooper destroyed. 05662_ B-75 Beast misfires. 05665_ Flak Cannon destroyed. 05683_ Shotgunner 3c destroyed. 05689_ Shotgunner 3a destroyed. 05693_ EXIT=FOUND 05724_ Dropped Adv. Beam Cannon. 05747_ Com. Wheel destroyed. 05750_ Adv. EMP Blaster destroyed. 05751_ The unstable cave ceiling collapses. 05753_ Prc. Rocket Launcher destroyed. 05795_ B-75 Beast misfires. 05829_ Propulsion Shielding destroyed. 05829_ Knocked back. 05889_ Acquired Adv. Beam Cannon. Map ----- +----------------------------------------------------+ | ?????????????????????????????????????????????????? | | ?????????????????????????????????????????????????? | | ?????????????????????????!???????????????????????? | | ????????????????????????? ???????????????????????? | | ????????????????????????? ???????????????????????? | | ????????????????????????? ???????????????????????? | | ??????????????????????##?!???##????#####?????????? | | ?????????????????????? #? ?# #????# ##????????? | | ?????????????????????? ? ?????## #????????? | | ?????????????????????? ## # #????# #????????? | | ?????????????????????# #BB# ?????# #????????? | | ?????????????????????# # BB ###????### ##????????? | | ???????????????????## # "??????# ##????????? | | ???????????????????# "??????# #????????? | | ???????????????????# # ???????# #????????? | | ????????????###????# #??#=% #????????# #????????? | | ???????????## ####"####%= #????????# ##????????? | | ???????????# %#????###### ##????????? | | ???????????# < #????# #????????? | | ???????????# ##???# #### ##????????? | | ???????????## #### #### ###??# #???????? | | ????????????###????# #??# ######????# #???????? | | ???????????????????# #??# #?????????# #???????? | | ???????????????????# ####%%########### #####???? | | ???????????????????# ;!!= #???# | | ???????????????????######@%##### ##### ### #???# | | ????????????????????????#!*#???# #???# #??##???# | | ????????????????????????# %#???# #???# #???????# | | ????????????????????????# %#???# #??##"###""""## | | ????????????????????????# !#####"#### | | ????????????????????????# %[= | | ????????????????????????# =%[ | | ????????????????????????########"#### ## ## | | ???????????????????????????????# #### ## ## | | ???????????????????????????????# | | ???????????????????????????????#### | | ??????????????????????????????????# | | ??????????????????????????????????# [%[ | | ??????????????????######??????????###= !##= ## ^ | | ?????????????????""""""""??##########=[ ## ! " | | ????????????????"""!!!!"""## == | | ???????????????#"" ""## *== | | ???????????????#"! !"## ###### % = | | ??????#####????#"! !"?# ?????##[= # ## | | ??????#"""#????#"! !??# ?????## [ # #? | | ??????#" "#????#"! ???# ####### ######? | | ??????#" "#????#"! ???# = # #????? | | ??????#" "#?????"! ????# #######% ###????? | | ??????# #??????" ?????# #?# #= #?????? | | ??????## ##???????# #???### ### # ##?????? | +----------------------------------------------------+ Best States ------------- Heat Dissipation 45 Energy Generation 23 Energy Capacity 280 Matter Stores 300 Matter Capacity 300 Sight Range 16 Terrain Scan Density 10 Armor Coverage 375 Resistance: TH 10 Power Shielding 66 Propulsion Shielding 33 Evasion (%) 55 Targeting Accuracy 16 Recoil Reduction 2 Defensive Hacking 10 Item Schematics ----------------- None Robot Schematics ------------------ None Fabricated ------------ Nothing Alien Tech Used ----------------- None Achievements -------------- None Challenges ------------ None Game ------ Seed DisposableDynamicAutogun Manual? 0 Play Time 00:34:15 Cumulative 68.9 hours Start 2024.07.18 @ 10:11:35 End 2024.07.18 @ 10:45:24 Sessions 1 Manual Loads 0 Difficulty Rogue Special Mode None Game No. 118 Rogue 118 Adventurer 0 Explorer 0 Win Type - Total 0 Types 0/0/0/0/0/0/0/0/0 Lore% 47 Gallery% 57 Achievement% 41 Wizard Run 0 Options --------- Layout 1 ASCII 0 Keyboard 0 Movement Mouse Keybinds 0 Fullscreen 2 Font 20/SmallcapsGlow Map View 54x42 Zoom Use 0% Tactical HUD 1 Map Filters NONE Filters NONE Steam 0 RUN: 1463036c-f0a4-43e0-bc75-849040779b74